Workbook

Sheet Spreadsheet17.1
B9: Parameters
B10: Mu | C10: 0 | F10: Mu(t) | G10: Sigma(t) | H10: Normal EE | I10: survival | J10: s'(t) | K10: Sigma'(t) | L10: Mu'(t) | M10: Wrong-way EE
B11: Sigma | C11: 0.1 | E11: 1e-07 | F11: =E11*Mu -> 0 | G11: =SQRT(E11)*Sigma -> 3.16227766e-05 | H11: =F11*NORMSDIST(F11/G11)+G11*NORMDIST(F11/G11,0,1,FALSE) -> 1.261566261e-05 | I11: =EXP(-Spread*E11/10000/LGD) -> 0.9999999983 | J11: =NORMSINV(I11) -> 5.914278565 | K11: =SQRT(1-Correlation^2)*G11 -> 2.738612788e-05 | L11: =F11+Correlation*G11*J11 -> 9.351295491e-05 | M11: =L11*NORMSDIST(L11/K11)+K11*NORMDIST(L11/K11,0,1,FALSE) -> 9.351519691e-05
B12: Spread | C12: 100 | E12: 0.05 | F12: 0 | G12: 0.02236067977 | H12: =F12*NORMSDIST(F12/G12)+G12*NORMDIST(F12/G12,0,1,FALSE) -> 0.008920620581 | I12: 0.9991670138 | J12: 3.144102207 | K12: 0.01936491673 | L12: 0.03515213132 | M12: 0.03541814338
B13: LGD | C13: 0.6 | E13: 0.1 | F13: 0 | G13: 0.0316227766 | H13: =F13*NORMSDIST(F13/G13)+G13*NORMDIST(F13/G13,0,1,FALSE) -> 0.01261566261 | I13: 0.9983347215 | J13: 2.935457987 | K13: 0.02738612788 | L13: 0.04641366607 | M13: 0.04692089471
B14: Correlation | C14: 0.5 | E14: 0.15 | F14: 0 | G14: 0.03872983346 | H14: 0.01545096808 | I14: 0.9975031224 | J14: 2.80743632 | K14: 0.03354101966 | L14: 0.05436577057 | M14: 0.05510776431
E15: 0.2 | F15: 0 | G15: 0.04472135955 | H15: 0.01784124116 | I15: 0.9966722161 | J15: 2.713603973 | K15: 0.03872983346 | L15: 0.06067802947 | M15: 0.0616512864
E16: 0.25 | F16: 0 | G16: 0.05 | H16: 0.01994711402 | I16: 0.9958420018 | J16: 2.638963381 | K16: 0.04330127019 | L16: 0.06597408453 | M16: 0.06717636125
E17: 0.3 | F17: 0 | G17: 0.05477225575 | H17: 0.02185096861 | I17: 0.9950124792 | J17: 2.576693294 | K17: 0.0474341649 | L17: 0.07056565206 | M17: 0.07199538839
E18: 0.35 | F18: 0 | G18: 0.05916079783 | H18: 0.0236017436 | I18: 0.9941836475 | J18: 2.52309476 | K18: 0.05123475383 | L18: 0.07463414951 | M18: 0.07629020678
E19: 0.4 | F19: 0 | G19: 0.0632455532 | H19: 0.02523132522 | I19: 0.9933555063 | J19: 2.475929342 | K19: 0.05477225575 | L19: 0.07829576047 | M19: 0.08017728191
E20: 0.5 | F20: 0 | G20: 0.07071067812 | H20: 0.02820947918 | I20: 0.9917012926 | J20: 2.395506616 | K20: 0.06123724357 | L20: 0.08469394861 | M20: 0.08702457369
E21: 0.6 | F21: 0 | G21: 0.07745966692 | H21: 0.03090193616 | I21: 0.9900498337 | J21: 2.328221738 | K21: 0.06708203932 | L21: 0.09017164016 | M21: 0.09294975155
E22: 0.8 | F22: 0 | G22: 0.0894427191 | H22: 0.03568248232 | I22: 0.9867551618 | J22: 2.218956613 | K22: 0.07745966692 | L22: 0.09923475652 | M22: 0.1029053245
E23: 1 | F23: 0 | G23: 0.1 | H23: 0.03989422804 | I23: 0.9834714538 | J23: 2.131389194 | K23: 0.08660254038 | L23: 0.1065694597 | M23: 0.1111313089
E24: 1.2 | F24: 0 | G24: 0.1095445115 | H24: 0.04370193722 | I24: 0.9801986733 | J24: 2.057869592 | K24: 0.09486832981 | L24: 0.1127141596 | M24: 0.1181675932
E25: 1.4 | F25: 0 | G25: 0.1183215957 | H25: 0.04720348719 | I25: 0.9769367839 | J25: 1.994234512 | K25: 0.1024695077 | L25: 0.1179805048 | M25: 0.1243266626
E26: 1.6 | F26: 0 | G26: 0.1264911064 | H26: 0.05046265044 | I26: 0.9736857494 | J26: 1.937956734 | K26: 0.1095445115 | L26: 0.1225671457 | M26: 0.129807678
E27: 1.8 | F27: 0 | G27: 0.1341640786 | H27: 0.05352372348 | I27: 0.9704455335 | J27: 1.887382234 | K27: 0.1161895004 | L27: 0.1266094493 | M27: 0.1347463324
E28: 2 | F28: 0 | G28: 0.1414213562 | H28: 0.05641895835 | I28: 0.9672161005 | J28: 1.841366975 | K28: 0.1224744871 | L28: 0.1302043075 | M28: 0.1392397328
E29: 2.2 | F29: 0 | G29: 0.1483239697 | H29: 0.05917270273 | I29: 0.9639974143 | J29: 1.799085408 | K29: 0.1284523258 | L29: 0.1334237448 | M29: 0.1433600471
E30: 2.4 | F30: 0 | G30: 0.1549193338 | H30: 0.06180387232 | I30: 0.9607894392 | J30: 1.759921475 | K30: 0.1341640786 | L30: 0.1363229312 | M30: 0.1471625416
E31: 2.6 | F31: 0 | G31: 0.161245155 | H31: 0.06432750983 | I31: 0.9575921395 | J31: 1.723402733 | K31: 0.1396424004 | L31: 0.1389451704 | M31: 0.1506905838
E32: 2.8 | F32: 0 | G32: 0.1673320053 | H32: 0.06675581178 | I32: 0.9544054797 | J32: 1.689158599 | K32: 0.1449137675 | L32: 0.1413251478 | M32: 0.1539789004
E33: 3 | F33: 0 | G33: 0.1732050808 | H33: 0.06909882989 | I33: 0.9512294245 | J33: 1.656892797 | K33: 0.15 | L33: 0.1434911253 | M33: 0.1570557779
E34: 3.2 | F34: 0 | G34: 0.1788854382 | H34: 0.07136496465 | I34: 0.9480639385 | J34: 1.626364571 | K34: 0.1549193338 | L34: 0.1454664695 | M34: 0.1599445958
E35: 3.4 | F35: 0 | G35: 0.1843908891 | H35: 0.0735613218 | I35: 0.9449089865 | J35: 1.597375515 | K35: 0.1596871942 | L35: 0.1472707458 | M35: 0.1626649238
E36: 3.6 | F36: 0 | G36: 0.1897366596 | H36: 0.07569397566 | I36: 0.9417645336 | J36: 1.569760102 | K36: 0.1643167673 | L36: 0.1489205191 | M36: 0.1652333242
E37: 3.8 | F37: 0 | G37: 0.1949358869 | H37: 0.07776816725 | I37: 0.9386305447 | J37: 1.543378733 | K37: 0.1688194302 | L37: 0.1504299511 | M37: 0.1676639515
E38: 4 | F38: 0 | G38: 0.2 | H38: 0.07978845608 | I38: 0.935506985 | J38: 1.518112542 | K38: 0.1732050808 | L38: 0.1518112542 | M38: 0.1699690073
E39: 4.2 | F39: 0 | G39: 0.2049390153 | H39: 0.08175883811 | I39: 0.9323938199 | J39: 1.493859446 | K39: 0.1774823935 | L39: 0.1530750419 | M39: 0.1721590914
E40: 4.4 | F40: 0 | G40: 0.2097617696 | H40: 0.08368283872 | I40: 0.9292910147 | J40: 1.470531094 | K40: 0.1816590212 | L40: 0.1542306023 | M40: 0.1742434763
E41: 4.6 | F41: 0 | G41: 0.2144761059 | H41: 0.08556358678 | I41: 0.926198535 | J41: 1.448050492 | K41: 0.1857417562 | L41: 0.1552861153 | M41: 0.1762303244
E42: 4.8 | F42: 0 | G42: 0.219089023 | H42: 0.08740387445 | I42: 0.9231163464 | J42: 1.426350109 | K42: 0.1897366596 | L42: 0.1562488259 | M42: 0.1781268627
E43: 5 | F43: =E43*Mu -> 0 | G43: =SQRT(E43)*Sigma -> 0.2236067977 | H43: 0.08920620581 | I43: =EXP(-Spread*E43/10000/LGD) -> 0.9200444146 | J43: 1.405370377 | K43: =SQRT(1-Correlation^2)*G43 -> 0.1936491673 | L43: =F43+Correlation*G43*J43 -> 0.1571251848 | M43: 0.1799395226
E44: 5.2 | F44: 0 | G44: 0.228035085 | H44: 0.09097283683 | I44: 0.9169827056 | J44: 1.385058472 | K44: 0.1974841766 | L44: 0.1579209632 | M44: 0.1816740556
E45: 5.4 | F45: 0 | G45: 0.2323790008 | H45: 0.09270580849 | I45: 0.9139311853 | J45: 1.365367321 | K45: 0.201246118 | L45: 0.1586413469 | M45: 0.1833356276
E46: 5.6 | F46: 0 | G46: 0.2366431913 | H46: 0.09440697439 | I46: 0.9108898197 | J46: 1.34625479 | K46: 0.2049390153 | L46: 0.159291015 | M46: 0.1849288973
E47: 5.8 | F47: 0 | G47: 0.2408318916 | H47: 0.09607802402 | I47: 0.9078585752 | J47: 1.327683007 | K47: 0.2085665361 | L47: 0.159874205 | M47: 0.186458082
E48: 6 | F48: 0 | G48: 0.2449489743 | H48: 0.09772050238 | I48: 0.904837418 | J48: 1.309617799 | K48: 0.2121320344 | L48: 0.1603947683 | M48: 0.1879270126
E49: 6.2 | F49: 0 | G49: 0.248997992 | H49: 0.09933582673 | I49: 0.9018263146 | J49: 1.292028223 | K49: 0.2156385865 | L49: 0.1608562166 | M49: 0.1893391807
E50: 6.4 | F50: 0 | G50: 0.2529822128 | H50: 0.1009253009 | I50: 0.8988252315 | J50: 1.274886164 | K50: 0.219089023 | L50: 0.1612617614 | M50: 0.1906977776
E51: 6.6 | F51: 0 | G51: 0.2569046516 | H51: 0.1024901275 | I51: 0.8958341353 | J51: 1.258165997 | K51: 0.2224859546 | L51: 0.1616143485 | M51: 0.1920057293
E52: 6.8 | F52: 0 | G52: 0.2607680962 | H52: 0.104031419 | I52: 0.8928529928 | J52: 1.2418443 | K52: 0.2258317958 | L52: 0.1619166869 | M52: 0.1932657248
E53: 7 | F53: 0 | G53: 0.2645751311 | H53: 0.1055502061 | I53: 0.889881771 | J53: 1.225899604 | K53: 0.2291287847 | L53: 0.1621712742 | M53: 0.1944802424
E54: 7.2 | F54: 0 | G54: 0.2683281573 | H54: 0.107047447 | I54: 0.8869204367 | J54: 1.210312178 | K54: 0.2323790008 | L54: 0.1623804182 | M54: 0.1956515707
E55: 7.4 | F55: 0 | G55: 0.2720294102 | H55: 0.1085240332 | I55: 0.8839689571 | J55: 1.195063847 | K55: 0.2355843798 | L55: 0.1625462567 | M55: 0.1967818285
E56: 7.6 | F56: 0 | G56: 0.275680975 | H56: 0.1099807968 | I56: 0.8810272994 | J56: 1.180137829 | K56: 0.2387467277 | L56: 0.1626707737 | M56: 0.1978729812
E57: 7.8 | F57: 0 | G57: 0.2792848009 | H57: 0.1114185153 | I57: 0.8780954309 | J57: 1.165518594 | K57: 0.2418677324 | L57: 0.1627558142 | M57: 0.1989268554
E58: 8 | F58: 0 | G58: 0.2828427125 | H58: 0.1128379167 | I58: 0.875173319 | J58: 1.151191742 | K58: 0.2449489743 | L58: 0.1628030974 | M58: 0.1999451521
E59: 8.2 | F59: 0 | G59: 0.2863564213 | H59: 0.1142396837 | I59: 0.8722609313 | J59: 1.137143893 | K59: 0.2479919354 | L59: 0.1628142279 | M59: 0.2009294584
E60: 8.4 | F60: 0 | G60: 0.2898275349 | H60: 0.1156244577 | I60: 0.8693582354 | J60: 1.123362595 | K60: 0.250998008 | L60: 0.1627907059 | M60: 0.2018812569
E61: 8.6 | F61: =E61*Mu -> 0 | G61: =SQRT(E61)*Sigma -> 0.293257566 | H61: =F61*NORMSDIST(F61/G61)+G61*NORMDIST(F61/G61,0,1,FALSE) -> 0.1169928421 | I61: 0.866465199 | J61: =NORMSINV(I61) -> 1.109836235 | K61: =SQRT(1-Correlation^2)*G61 -> 0.253968502 | L61: =F61+Correlation*G61*J61 -> 0.1627339364 | M61: =L61*NORMSDIST(L61/K61)+K61*NORMDIST(L61/K61,0,1,FALSE) -> 0.2028019355
E62: 8.8 | F62: 0 | G62: 0.2966479395 | H62: 0.1183454055 | I62: 0.86358179 | J62: 1.096553967 | K62: 0.2569046516 | L62: 0.1626452374 | M62: 0.2036927952
E63: 9 | F63: 0 | G63: 0.3 | H63: 0.1196826841 | I63: 0.8607079764 | J63: 1.083505644 | K63: 0.2598076211 | L63: 0.1625258466 | M63: 0.2045550573
E64: 9.2 | F64: 0 | G64: 0.3033150178 | H64: 0.1210051849 | I64: 0.8578437262 | J64: 1.070681759 | K64: 0.2626785107 | L64: 0.1623769283 | M64: 0.2053898699
E65: 9.4 | F65: 0 | G65: 0.3065941943 | H65: 0.122313387 | I65: 0.8549890077 | J65: 1.058073391 | K65: 0.2655183609 | L65: 0.1621995794 | M65: 0.2061983137
E66: 9.6 | F66: 0 | G66: 0.3098386677 | H66: 0.1236077446 | I66: 0.852143789 | J66: 1.045672157 | K66: 0.2683281573 | L66: 0.161994834 | M66: 0.2069814073
E67: 9.8 | F67: 0 | G67: 0.3130495168 | H67: 0.1248886881 | I67: 0.8493080385 | J67: 1.033470171 | K67: 0.2711088342 | L67: 0.1617636688 | M67: 0.2077401119
E68: 10 | F68: 0 | G68: 0.316227766 | H68: 0.1261566261 | I68: 0.8464817249 | J68: 1.021460002 | K68: 0.2738612788 | L68: 0.1615070072 | M68: 0.2084753357
